[Event "Early-Titled-Tuesday-Blitz-February-13-2024"]
[Site "Chess.com"]
[Date "2024.02.13"]
[Round "7"]
[White "TRadjabov"]
[Black "AlexeiShirov"]
[Result "0-1"]
[WhiteElo "3011"]
[BlackElo "2849"]
[TimeControl "180+1"]
[EndTime "9:19:47 PST"]
[Termination "AlexeiShirov won by checkmate"]

1. d4 {[%clk 0:02:53]} 1... d5 {[%clk 0:02:59.5]} 2. Bf4 {[%clk 0:02:52.8]} 2...
Nf6 {[%clk 0:02:58.6]} 3. e3 {[%clk 0:02:53.4]} 3... c5 {[%clk 0:02:58.4]} 4.
Nf3 {[%clk 0:02:53.4]} 4... Nc6 {[%clk 0:02:58.1]} 5. Nbd2 {[%clk 0:02:53.3]}
5... Qb6 {[%clk 0:02:58]} 6. dxc5 {[%clk 0:02:50.3]} 6... Qxb2 {[%clk
0:02:57.9]} 7. Rb1 {[%clk 0:02:49.6]} 7... Qc3 {[%clk 0:02:58]} 8. Bb5 {[%clk
0:02:42.2]} 8... g6 {[%clk 0:02:56.3]} 9. O-O {[%clk 0:02:40.6]} 9... Bg7 {[%clk
0:02:55.1]} 10. Nb3 {[%clk 0:02:26.7]} 10... O-O {[%clk 0:02:52.2]} 11. Bxc6
{[%clk 0:02:06.6]} 11... bxc6 {[%clk 0:02:51.5]} 12. Be5 {[%clk 0:01:58.8]}
12... Qb4 {[%clk 0:02:46.8]} 13. Qd4 {[%clk 0:01:53.6]} 13... Qa3 {[%clk
0:02:36.3]} 14. Qa1 {[%clk 0:01:32]} 14... Ba6 {[%clk 0:02:32.3]} 15. Rfe1
{[%clk 0:01:26.8]} 15... Bc4 {[%clk 0:02:26.5]} 16. Nfd4 {[%clk 0:01:23.9]}
16... Rfc8 {[%clk 0:02:24]} 17. h3 {[%clk 0:01:19.4]} 17... a5 {[%clk
0:02:21.8]} 18. c3 {[%clk 0:00:43.3]} 18... a4 {[%clk 0:02:20]} 19. Nc2 {[%clk
0:00:42.6]} 19... axb3 {[%clk 0:02:17.4]} 20. Nxa3 {[%clk 0:00:42.4]} 20... Rxa3
{[%clk 0:02:17.2]} 21. Rxb3 {[%clk 0:00:30.8]} 21... Bxb3 {[%clk 0:02:12.1]} 22.
Qb2 {[%clk 0:00:31.2]} 22... Rca8 {[%clk 0:01:59.6]} 23. axb3 {[%clk 0:00:31]}
23... Ra2 {[%clk 0:01:59.7]} 24. Qc1 {[%clk 0:00:29.8]} 24... Ne4 {[%clk
0:01:59.7]} 25. Bxg7 {[%clk 0:00:29]} 25... Kxg7 {[%clk 0:01:59.2]} 26. f3
{[%clk 0:00:25.5]} 26... Nxc5 {[%clk 0:01:56.8]} 27. c4 {[%clk 0:00:21.3]} 27...
d4 {[%clk 0:01:49.8]} 28. Qd1 {[%clk 0:00:15]} 28... d3 {[%clk 0:01:38.2]} 29.
Kh2 {[%clk 0:00:09.8]} 29... Rb2 {[%clk 0:01:33.3]} 30. b4 {[%clk 0:00:07.8]}
30... Raa2 {[%clk 0:01:32]} 31. bxc5 {[%clk 0:00:06.4]} 31... Rxg2+ {[%clk
0:01:31]} 32. Kh1 {[%clk 0:00:06.9]} 32... Rh2+ {[%clk 0:01:30.3]} 33. Kg1
{[%clk 0:00:07.5]} 33... Rag2+ {[%clk 0:01:27.8]} 34. Kf1 {[%clk 0:00:08]} 34...
Rd2 {[%clk 0:01:10]} 35. Qa1+ {[%clk 0:00:07.7]} 35... f6 {[%clk 0:01:07.1]} 36.
Qa7 {[%clk 0:00:05.6]} 36... Rh1# {[%clk 0:01:04.7]} 0-1

[Event "Early-Titled-Tuesday-Blitz-February-13-2024"]
[Site "Chess.com"]
[Date "2024.02.13"]
[Round "7"]
[White "CarlosjPineror"]
[Black "jcibarra"]
[Result "1-0"]
[WhiteElo "2713"]
[BlackElo "2940"]
[TimeControl "180+1"]
[EndTime "9:19:49 PST"]
[Termination "CarlosjPineror won on time"]

1. e4 {[%clk 0:03:00.9]} 1... c5 {[%clk 0:02:48.1]} 2. Nf3 {[%clk 0:02:56.3]}
2... e6 {[%clk 0:02:47.8]} 3. g3 {[%clk 0:02:43.3]} 3... Nc6 {[%clk 0:02:46.6]}
4. Bg2 {[%clk 0:02:43.6]} 4... Nf6 {[%clk 0:02:46.7]} 5. Qe2 {[%clk 0:02:43.3]}
5... e5 {[%clk 0:02:46.3]} 6. O-O {[%clk 0:02:43.1]} 6... Be7 {[%clk 0:02:46.6]}
7. c3 {[%clk 0:02:42]} 7... O-O {[%clk 0:02:46]} 8. d4 {[%clk 0:02:42.6]} 8...
cxd4 {[%clk 0:02:39.4]} 9. cxd4 {[%clk 0:02:43.5]} 9... exd4 {[%clk 0:02:22.5]}
10. e5 {[%clk 0:02:42.8]} 10... Nd5 {[%clk 0:02:17.2]} 11. Rd1 {[%clk
0:02:43.2]} 11... Qb6 {[%clk 0:02:00.8]} 12. Nbd2 {[%clk 0:02:38.7]} 12... d6
{[%clk 0:01:55]} 13. Nc4 {[%clk 0:02:20.1]} 13... Qa6 {[%clk 0:01:44]} 14. exd6
{[%clk 0:02:18.5]} 14... Bxd6 {[%clk 0:01:36.1]} 15. Nxd4 {[%clk 0:02:18.7]}
15... Bc5 {[%clk 0:01:00.4]} 16. Nb3 {[%clk 0:01:57.8]} 16... Nb6 {[%clk
0:00:59.5]} 17. Nxc5 {[%clk 0:01:44.7]} 17... Qxc4 {[%clk 0:00:58.1]} 18. Qxc4
{[%clk 0:01:41.7]} 18... Nxc4 {[%clk 0:00:59]} 19. b3 {[%clk 0:01:32.6]} 19...
N4e5 {[%clk 0:00:59.1]} 20. h3 {[%clk 0:01:24.8]} 20... Rb8 {[%clk 0:00:31.5]}
21. Bf4 {[%clk 0:01:22.4]} 21... f6 {[%clk 0:00:27.6]} 22. Rac1 {[%clk
0:01:21.8]} 22... Bf5 {[%clk 0:00:17]} 23. g4 {[%clk 0:01:13]} 23... Bg6 {[%clk
0:00:17.4]} 24. Bxc6 {[%clk 0:01:06.3]} 24... Nxc6 {[%clk 0:00:10.6]} 25. Bxb8
{[%clk 0:01:04.8]} 25... Rxb8 {[%clk 0:00:11.5]} 26. Nxb7 {[%clk 0:01:03.2]}
26... Rxb7 {[%clk 0:00:05]} 27. Rxc6 {[%clk 0:01:03.8]} 27... h5 {[%clk
0:00:04.7]} 28. f3 {[%clk 0:01:02.3]} 28... Kh7 {[%clk 0:00:02.9]} 29. Rcd6
{[%clk 0:01:01.2]} 29... Rb5 {[%clk 0:00:02.9]} 30. Rd7 {[%clk 0:01:01.5]} 30...
a5 {[%clk 0:00:02.9]} 31. Ra7 {[%clk 0:01:01.7]} 31... Kh6 {[%clk 0:00:02.1]}
32. Kf2 {[%clk 0:01:00.6]} 32... Rc5 {[%clk 0:00:02.1]} 33. Rd2 {[%clk
0:00:57.9]} 33... Kg5 {[%clk 0:00:02.3]} 34. Rxg7 {[%clk 0:00:54.7]} 1-0

[Event "Early-Titled-Tuesday-Blitz-February-13-2024"]
[Site "Chess.com"]
[Date "2024.02.13"]
[Round "7"]
[White "Cirky"]
[Black "cyrdap"]
[Result "0-1"]
[WhiteElo "2479"]
[BlackElo "2631"]
[TimeControl "180+1"]
[EndTime "9:19:49 PST"]
[Termination "cyrdap won by checkmate"]

1. d4 {[%clk 0:03:00.9]} 1... Nf6 {[%clk 0:02:55.6]} 2. c4 {[%clk 0:03:00.5]}
2... e6 {[%clk 0:02:55.9]} 3. Nf3 {[%clk 0:02:56.8]} 3... b6 {[%clk 0:02:55.2]}
4. g3 {[%clk 0:02:56.7]} 4... Ba6 {[%clk 0:02:55.4]} 5. Qa4 {[%clk 0:02:56.9]}
5... c5 {[%clk 0:02:54.8]} 6. dxc5 {[%clk 0:02:57.1]} 6... Bxc5 {[%clk
0:02:53.7]} 7. Bg2 {[%clk 0:02:57.5]} 7... Bb7 {[%clk 0:02:52.7]} 8. Nc3 {[%clk
0:02:57.5]} 8... O-O {[%clk 0:02:52.7]} 9. O-O {[%clk 0:02:57.5]} 9... Be7
{[%clk 0:02:51.7]} 10. Bf4 {[%clk 0:02:57.1]} 10... Na6 {[%clk 0:02:51.6]} 11.
Rfd1 {[%clk 0:02:41.1]} 11... Nc5 {[%clk 0:02:50.7]} 12. Qc2 {[%clk 0:02:41.1]}
12... Rc8 {[%clk 0:02:50.9]} 13. Nb5 {[%clk 0:02:25.2]} 13... Be4 {[%clk
0:02:50.2]} 14. Qd2 {[%clk 0:02:21.6]} 14... d5 {[%clk 0:02:49.5]} 15. Nxa7
{[%clk 0:02:15.4]} 15... dxc4 {[%clk 0:02:49.1]} 16. Nxc8 {[%clk 0:02:08.3]}
16... Qxc8 {[%clk 0:02:49.1]} 17. Qb4 {[%clk 0:01:33]} 17... Qa6 {[%clk
0:02:35]} 18. Bd6 {[%clk 0:01:18]} 18... Bxd6 {[%clk 0:02:27.8]} 19. Rxd6 {[%clk
0:01:18.9]} 19... Nd5 {[%clk 0:02:27.6]} 20. Qd2 {[%clk 0:01:18.4]} 20... Nb3
{[%clk 0:02:24]} 21. Qd1 {[%clk 0:00:43.6]} 21... Nxa1 {[%clk 0:02:22.5]} 22.
Qxa1 {[%clk 0:00:43.9]} 22... h6 {[%clk 0:02:10.4]} 23. a3 {[%clk 0:00:37.4]}
23... c3 {[%clk 0:02:09.6]} 24. bxc3 {[%clk 0:00:32.4]} 24... Rc8 {[%clk
0:02:07.3]} 25. Ne5 {[%clk 0:00:24.6]} 25... Bxg2 {[%clk 0:02:06.1]} 26. Kxg2
{[%clk 0:00:25.1]} 26... Qxe2 {[%clk 0:02:06.1]} 27. c4 {[%clk 0:00:24.3]} 27...
Nf6 {[%clk 0:01:47.9]} 28. Qd4 {[%clk 0:00:23.4]} 28... Rc5 {[%clk 0:01:41.8]}
29. Rd8+ {[%clk 0:00:22.7]} 29... Kh7 {[%clk 0:01:41.2]} 30. Nxf7 {[%clk
0:00:23.2]} 30... Rf5 {[%clk 0:01:37.9]} 31. Rh8+ {[%clk 0:00:14.5]} 31... Kg6
{[%clk 0:01:37.8]} 32. Nd6 {[%clk 0:00:15]} 32... Rh5 {[%clk 0:01:30.7]} 33. h4
{[%clk 0:00:14.4]} 33... Rc5 {[%clk 0:01:19.8]} 34. Ne8 {[%clk 0:00:12.9]} 34...
Rxc4 {[%clk 0:01:17.3]} 35. h5+ {[%clk 0:00:12]} 35... Kf7 {[%clk 0:01:05.2]}
36. Qd6 {[%clk 0:00:06.5]} 36... Qe4+ {[%clk 0:01:02]} 37. Kh2 {[%clk
0:00:05.3]} 37... Ng4+ {[%clk 0:01:01.9]} 38. Kh3 {[%clk 0:00:05.3]} 38... Nxf2+
{[%clk 0:01:02.1]} 39. Kh2 {[%clk 0:00:05.9]} 39... Qh1# {[%clk 0:01:02.1]} 0-1

[Event "Early-Titled-Tuesday-Blitz-February-13-2024"]
[Site "Chess.com"]
[Date "2024.02.13"]
[Round "7"]
[White "Egor_Koshulyan"]
[Black "marik_spb"]
[Result "1-0"]
[WhiteElo "2627"]
[BlackElo "2475"]
[TimeControl "180+1"]
[EndTime "9:19:49 PST"]
[Termination "Egor_Koshulyan won by checkmate"]

1. f4 {[%clk 0:03:00.9]} 1... Nf6 {[%clk 0:02:56.2]} 2. Nf3 {[%clk 0:02:52]}
2... d5 {[%clk 0:02:56.1]} 3. g3 {[%clk 0:02:50.1]} 3... c5 {[%clk 0:02:53]} 4.
Bg2 {[%clk 0:02:51]} 4... Nc6 {[%clk 0:02:53.4]} 5. O-O {[%clk 0:02:51]} 5...
Bg4 {[%clk 0:02:53]} 6. d3 {[%clk 0:02:51.9]} 6... Qd7 {[%clk 0:02:52.7]} 7. Ne5
{[%clk 0:02:50.6]} 7... Nxe5 {[%clk 0:02:46.7]} 8. fxe5 {[%clk 0:02:51.5]} 8...
Nh5 {[%clk 0:02:47.2]} 9. d4 {[%clk 0:02:25.4]} 9... Bh3 {[%clk 0:02:44.3]} 10.
dxc5 {[%clk 0:02:01.5]} 10... Bxg2 {[%clk 0:02:44.1]} 11. Kxg2 {[%clk
0:02:02.4]} 11... g6 {[%clk 0:02:39.1]} 12. Qd4 {[%clk 0:01:56.5]} 12... e6
{[%clk 0:02:37.5]} 13. Nd2 {[%clk 0:01:44]} 13... Rc8 {[%clk 0:02:12.6]} 14. b4
{[%clk 0:01:41.6]} 14... Ng7 {[%clk 0:02:04.8]} 15. e4 {[%clk 0:01:41.6]} 15...
b6 {[%clk 0:01:39.6]} 16. cxb6 {[%clk 0:01:38.2]} 16... axb6 {[%clk 0:01:39.5]}
17. Kg1 {[%clk 0:01:26.7]} 17... dxe4 {[%clk 0:01:03.5]} 18. Qxd7+ {[%clk
0:01:25.1]} 18... Kxd7 {[%clk 0:01:04.4]} 19. Rxf7+ {[%clk 0:01:16.5]} 19... Ke8
{[%clk 0:01:02.7]} 20. Rb7 {[%clk 0:01:17.2]} 20... Rxc2 {[%clk 0:00:41.7]} 21.
Nxe4 {[%clk 0:01:17.6]} 21... Nf5 {[%clk 0:00:38.5]} 22. Bg5 {[%clk 0:01:10.4]}
22... h6 {[%clk 0:00:17.9]} 23. Rd1 {[%clk 0:01:09.7]} 23... Be7 {[%clk
0:00:14]} 24. Bxe7 {[%clk 0:01:02.6]} 24... Nxe7 {[%clk 0:00:14.9]} 25. Nf6+
{[%clk 0:01:01.1]} 25... Kf7 {[%clk 0:00:06.2]} 26. Rdd7 {[%clk 0:01:01.5]}
26... g5 {[%clk 0:00:06.6]} 27. Rxe7+ {[%clk 0:01:01.6]} 27... Kg6 {[%clk
0:00:07.2]} 28. g4 {[%clk 0:01:02.3]} 28... h5 {[%clk 0:00:05.5]} 29. Rg7+
{[%clk 0:01:00.7]} 29... Kh6 {[%clk 0:00:05.9]} 30. gxh5 {[%clk 0:00:58.5]}
30... Rc1+ {[%clk 0:00:06.1]} 31. Kf2 {[%clk 0:00:58.6]} 31... Rc2+ {[%clk
0:00:06.6]} 32. Ke3 {[%clk 0:00:59.2]} 32... Rc3+ {[%clk 0:00:02.9]} 33. Kd4
{[%clk 0:00:59]} 33... Rhc8 {[%clk 0:00:01.2]} 34. Rh7# {[%clk 0:00:56.6]} 1-0

[Event "Early-Titled-Tuesday-Blitz-February-13-2024"]
[Site "Chess.com"]
[Date "2024.02.13"]
[Round "7"]
[White "WilsonPalencia21"]
[Black "Ron_Weasley_Chess"]
[Result "1-0"]
[WhiteElo "2590"]
[BlackElo "2453"]
[TimeControl "180+1"]
[EndTime "9:19:49 PST"]
[Termination "WilsonPalencia21 won by checkmate"]

1. d4 {[%clk 0:02:55.6]} 1... Nf6 {[%clk 0:02:59.7]} 2. c4 {[%clk 0:02:55.2]}
2... c5 {[%clk 0:02:58.4]} 3. d5 {[%clk 0:02:55.1]} 3... b5 {[%clk 0:02:57.1]}
4. cxb5 {[%clk 0:02:56]} 4... a6 {[%clk 0:02:57.6]} 5. bxa6 {[%clk 0:02:56.9]}
5... g6 {[%clk 0:02:57.9]} 6. Nc3 {[%clk 0:02:56.9]} 6... Bg7 {[%clk 0:02:58]}
7. e4 {[%clk 0:02:57.3]} 7... O-O {[%clk 0:02:58.7]} 8. e5 {[%clk 0:02:57.5]}
8... Ne8 {[%clk 0:02:58.6]} 9. h4 {[%clk 0:02:57.7]} 9... Bxe5 {[%clk
0:02:51.1]} 10. h5 {[%clk 0:02:57.5]} 10... d6 {[%clk 0:02:49.1]} 11. hxg6
{[%clk 0:02:55.2]} 11... fxg6 {[%clk 0:02:45.9]} 12. Bh6 {[%clk 0:02:55.2]}
12... Qa5 {[%clk 0:02:36.3]} 13. Qd2 {[%clk 0:02:46.9]} 13... Ng7 {[%clk
0:02:07.5]} 14. Nf3 {[%clk 0:02:40.9]} 14... Bf6 {[%clk 0:02:06.6]} 15. Ng5
{[%clk 0:02:35]} 15... Bxg5 {[%clk 0:01:29.5]} 16. Bxg5 {[%clk 0:02:30.1]} 16...
Bxa6 {[%clk 0:01:25.3]} 17. O-O-O {[%clk 0:02:19.1]} 17... Nf5 {[%clk
0:01:14.8]} 18. g4 {[%clk 0:01:58.6]} 18... Nd4 {[%clk 0:01:14.5]} 19. Bxe7
{[%clk 0:01:56.6]} 19... Re8 {[%clk 0:00:20.6]} 20. Bf6 {[%clk 0:01:52.3]} 20...
Bxf1 {[%clk 0:00:17.6]} 21. Rdxf1 {[%clk 0:01:35.1]} 21... Nd7 {[%clk
0:00:08.9]} 22. Bxd4 {[%clk 0:01:06.7]} 22... cxd4 {[%clk 0:00:09.8]} 23. Qxd4
{[%clk 0:01:06.9]} 23... Nc5 {[%clk 0:00:07.8]} 24. Rxh7 {[%clk 0:00:57.2]}
24... Nb3+ {[%clk 0:00:03.3]} 25. axb3 {[%clk 0:00:56.8]} 25... Qa1+ {[%clk
0:00:02.5]} 26. Nb1 {[%clk 0:00:56.9]} 26... Rac8+ {[%clk 0:00:02]} 27. Kd2
{[%clk 0:00:55.8]} 27... Kxh7 {[%clk 0:00:02.5]} 28. Rh1+ {[%clk 0:00:55.6]}
28... Kg8 {[%clk 0:00:02.7]} 29. Rh8+ {[%clk 0:00:54.9]} 29... Kf7 {[%clk
0:00:03.6]} 30. Rh7+ {[%clk 0:00:55.1]} 30... Kg8 {[%clk 0:00:02.8]} 31. Qg7#
{[%clk 0:00:55.5]} 1-0

[Event "Early-Titled-Tuesday-Blitz-February-13-2024"]
[Site "Chess.com"]
[Date "2024.02.13"]
[Round "7"]
[White "arctic_t00"]
[Black "LiadCuba"]
[Result "0-1"]
[WhiteElo "2695"]
[BlackElo "2496"]
[TimeControl "180+1"]
[EndTime "9:19:53 PST"]
[Termination "LiadCuba won on time"]

1. d4 {[%clk 0:02:50.5]} 1... d5 {[%clk 0:02:58.8]} 2. Nf3 {[%clk 0:02:50.4]}
2... Nf6 {[%clk 0:02:58.8]} 3. Bf4 {[%clk 0:02:48.6]} 3... c5 {[%clk 0:02:56.5]}
4. e3 {[%clk 0:02:48.9]} 4... Nc6 {[%clk 0:02:55.4]} 5. c3 {[%clk 0:02:49.2]}
5... Qb6 {[%clk 0:02:54.6]} 6. Qb3 {[%clk 0:02:49.2]} 6... c4 {[%clk 0:02:54.7]}
7. Qc2 {[%clk 0:02:48.1]} 7... Bf5 {[%clk 0:02:53.6]} 8. Qc1 {[%clk 0:02:48.8]}
8... h6 {[%clk 0:02:52.5]} 9. Nbd2 {[%clk 0:02:47.3]} 9... e6 {[%clk 0:02:50.9]}
10. Be2 {[%clk 0:02:42.9]} 10... Be7 {[%clk 0:02:50.3]} 11. O-O {[%clk
0:02:40.2]} 11... O-O {[%clk 0:02:50.4]} 12. Bd1 {[%clk 0:02:38.4]} 12... Rfc8
{[%clk 0:02:25.9]} 13. Bc2 {[%clk 0:02:38.1]} 13... Bxc2 {[%clk 0:02:25.8]} 14.
Qxc2 {[%clk 0:02:37.9]} 14... Nd7 {[%clk 0:02:26.4]} 15. e4 {[%clk 0:02:31.4]}
15... Bf8 {[%clk 0:02:17.8]} 16. Rfe1 {[%clk 0:02:29.1]} 16... Nf6 {[%clk
0:02:14.2]} 17. Rab1 {[%clk 0:02:18.5]} 17... Qa5 {[%clk 0:02:04.5]} 18. a3
{[%clk 0:02:15.8]} 18... Nxe4 {[%clk 0:02:00.7]} 19. Nxe4 {[%clk 0:02:15.5]}
19... dxe4 {[%clk 0:02:01.6]} 20. Qxe4 {[%clk 0:02:11.7]} 20... Qd5 {[%clk
0:01:55.1]} 21. Qe3 {[%clk 0:02:07.4]} 21... Qh5 {[%clk 0:01:51.1]} 22. h3
{[%clk 0:02:05]} 22... Ne7 {[%clk 0:01:50.4]} 23. Ne5 {[%clk 0:02:03.4]} 23...
Nd5 {[%clk 0:01:48.7]} 24. Qd2 {[%clk 0:01:59.9]} 24... b5 {[%clk 0:01:35.2]}
25. Bg3 {[%clk 0:01:48.7]} 25... a5 {[%clk 0:01:31.9]} 26. Re4 {[%clk
0:01:44.3]} 26... Qf5 {[%clk 0:01:23.4]} 27. Rbe1 {[%clk 0:01:42.7]} 27... b4
{[%clk 0:01:23]} 28. axb4 {[%clk 0:01:22.9]} 28... axb4 {[%clk 0:01:23.9]} 29.
Ng4 {[%clk 0:01:15.8]} 29... Ra2 {[%clk 0:01:10]} 30. Qc1 {[%clk 0:00:28]} 30...
bxc3 {[%clk 0:01:03.6]} 31. bxc3 {[%clk 0:00:28.9]} 31... Rca8 {[%clk
0:00:52.6]} 32. Re5 {[%clk 0:00:07.7]} 32... Qc2 {[%clk 0:00:49.6]} 33. Qxc2
{[%clk 0:00:01]} 33... Rxc2 {[%clk 0:00:50.5]} 0-1

[Event "Early-Titled-Tuesday-Blitz-February-13-2024"]
[Site "Chess.com"]
[Date "2024.02.13"]
[Round "7"]
[White "cukricek"]
[Black "nekotyanof"]
[Result "0-1"]
[WhiteElo "2482"]
[BlackElo "2639"]
[TimeControl "180+1"]
[EndTime "9:19:57 PST"]
[Termination "nekotyanof won on time"]

1. g3 {[%clk 0:03:00.9]} 1... Nf6 {[%clk 0:02:59.9]} 2. Bg2 {[%clk 0:03:01.3]}
2... g6 {[%clk 0:03:00.1]} 3. Nf3 {[%clk 0:03:01.7]} 3... Bg7 {[%clk 0:03:00.8]}
4. O-O {[%clk 0:03:02.4]} 4... O-O {[%clk 0:03:01]} 5. c4 {[%clk 0:03:03]} 5...
c6 {[%clk 0:03:01.6]} 6. Nc3 {[%clk 0:03:03.6]} 6... d5 {[%clk 0:03:02.3]} 7. d4
{[%clk 0:02:58.8]} 7... dxc4 {[%clk 0:03:01.6]} 8. e4 {[%clk 0:02:57.5]} 8... b5
{[%clk 0:03:00.1]} 9. e5 {[%clk 0:02:54.2]} 9... Nd5 {[%clk 0:03:00.1]} 10. a4
{[%clk 0:02:54.4]} 10... Bb7 {[%clk 0:02:57.6]} 11. Nxd5 {[%clk 0:02:24.4]}
11... Qxd5 {[%clk 0:02:54.7]} 12. Ng5 {[%clk 0:02:22.4]} 12... Qd7 {[%clk
0:02:51]} 13. e6 {[%clk 0:02:17.2]} 13... fxe6 {[%clk 0:02:51.9]} 14. Bh3 {[%clk
0:02:17.3]} 14... Rf6 {[%clk 0:02:52.1]} 15. Ne4 {[%clk 0:02:13.5]} 15... Rf5
{[%clk 0:02:38.4]} 16. Nc5 {[%clk 0:02:08.8]} 16... Qc8 {[%clk 0:02:07.9]} 17.
Re1 {[%clk 0:01:35.9]} 17... Nd7 {[%clk 0:02:01]} 18. Nxe6 {[%clk 0:01:30]}
18... Bf6 {[%clk 0:01:42.5]} 19. Bxf5 {[%clk 0:01:13]} 19... gxf5 {[%clk
0:01:43.4]} 20. Qh5 {[%clk 0:01:12]} 20... Nf8 {[%clk 0:01:38.2]} 21. Qxf5
{[%clk 0:00:39.7]} 21... Nxe6 {[%clk 0:01:36.3]} 22. Rxe6 {[%clk 0:00:40.6]}
22... Qf8 {[%clk 0:01:26.5]} 23. Bg5 {[%clk 0:00:31.8]} 23... Bxd4 {[%clk
0:01:20.5]} 24. Qc2 {[%clk 0:00:09.6]} 24... Re8 {[%clk 0:01:14.3]} 25. Rae1
{[%clk 0:00:08.9]} 25... Bc5 {[%clk 0:01:07]} 26. Qe2 {[%clk 0:00:02.9]} 26...
Qf5 {[%clk 0:01:04.1]} 27. Bh4 {[%clk 0:00:01.8]} 27... Bd4 {[%clk 0:01:00.8]}
28. Re4 {[%clk 0:00:01.7]} 28... c5 {[%clk 0:01:00.5]} 29. Rxe7 {[%clk
0:00:01.3]} 29... Rxe7 {[%clk 0:00:58.9]} 30. Bxe7 {[%clk 0:00:01.5]} 30... Qh3
{[%clk 0:00:41.6]} 0-1

[Event "Early-Titled-Tuesday-Blitz-February-13-2024"]
[Site "Chess.com"]
[Date "2024.02.13"]
[Round "7"]
[White "CSB7"]
[Black "mishanick"]
[Result "0-1"]
[WhiteElo "2768"]
[BlackElo "2980"]
[TimeControl "180+1"]
[EndTime "9:19:58 PST"]
[Termination "mishanick won by resignation"]

1. d4 {[%clk 0:03:00.9]} 1... Nf6 {[%clk 0:02:56.6]} 2. c4 {[%clk 0:02:59.9]}
2... e6 {[%clk 0:02:57.1]} 3. g3 {[%clk 0:02:55.5]} 3... d5 {[%clk 0:02:56.9]}
4. Bg2 {[%clk 0:02:55.6]} 4... Be7 {[%clk 0:02:57.5]} 5. Nf3 {[%clk 0:02:55.6]}
5... O-O {[%clk 0:02:58.3]} 6. O-O {[%clk 0:02:56]} 6... dxc4 {[%clk 0:02:59]}
7. Na3 {[%clk 0:02:56.3]} 7... Bxa3 {[%clk 0:02:56.5]} 8. bxa3 {[%clk
0:02:57.2]} 8... Bd7 {[%clk 0:02:56.9]} 9. a4 {[%clk 0:02:56.2]} 9... Bc6 {[%clk
0:02:54.4]} 10. Ba3 {[%clk 0:02:56.5]} 10... Re8 {[%clk 0:02:52.1]} 11. Qc2
{[%clk 0:02:56.6]} 11... Nbd7 {[%clk 0:02:48.7]} 12. Rac1 {[%clk 0:02:56]} 12...
a5 {[%clk 0:02:45.6]} 13. Qxc4 {[%clk 0:02:54.1]} 13... Nb6 {[%clk 0:02:45.8]}
14. Qc3 {[%clk 0:02:52.7]} 14... Nxa4 {[%clk 0:02:33]} 15. Qb3 {[%clk
0:02:50.3]} 15... Nb6 {[%clk 0:02:27.1]} 16. Rxc6 {[%clk 0:02:50.7]} 16... bxc6
{[%clk 0:02:27.5]} 17. Ne5 {[%clk 0:02:51.3]} 17... Qxd4 {[%clk 0:02:26.6]} 18.
Nxc6 {[%clk 0:02:47.5]} 18... Qc4 {[%clk 0:02:22.9]} 19. Qb2 {[%clk 0:02:22.4]}
19... Nfd5 {[%clk 0:02:03.8]} 20. Rc1 {[%clk 0:02:08.3]} 20... Qa4 {[%clk
0:02:03.2]} 21. h4 {[%clk 0:00:52.3]} 21... h6 {[%clk 0:01:47.7]} 22. e4 {[%clk
0:00:38.1]} 22... Nb4 {[%clk 0:01:45.5]} 23. Bxb4 {[%clk 0:00:29]} 23... axb4
{[%clk 0:01:45.2]} 24. e5 {[%clk 0:00:29.7]} 24... Qxa2 {[%clk 0:01:34.6]} 25.
Qxb4 {[%clk 0:00:28]} 25... Ra4 {[%clk 0:01:22.9]} 26. Qb5 {[%clk 0:00:17.6]}
26... Rc4 {[%clk 0:01:14.6]} 27. Rf1 {[%clk 0:00:17.5]} 27... Qa4 {[%clk
0:01:13.3]} 28. Qxa4 {[%clk 0:00:05.9]} 28... Nxa4 {[%clk 0:01:14.2]} 29. Rb1
{[%clk 0:00:04.6]} 29... Nb6 {[%clk 0:01:10.7]} 30. Ra1 {[%clk 0:00:03.8]} 30...
Rc5 {[%clk 0:01:10.7]} 31. Ra7 {[%clk 0:00:03.5]} 31... Nd5 {[%clk 0:01:06.2]}
32. Bxd5 {[%clk 0:00:03.7]} 32... exd5 {[%clk 0:00:59]} 33. Rxc7 {[%clk
0:00:04.1]} 33... Kh7 {[%clk 0:00:58.9]} 34. f4 {[%clk 0:00:03.5]} 34... Re6
{[%clk 0:00:58.6]} 35. Rxf7 {[%clk 0:00:03.4]} 35... Rexc6 {[%clk 0:00:58.7]}
36. f5 {[%clk 0:00:03.5]} 36... Rc2 {[%clk 0:00:55.3]} 37. f6 {[%clk 0:00:02.7]}
37... Rb2 {[%clk 0:00:53.4]} 38. Rxg7+ {[%clk 0:00:02.9]} 38... Kh8 {[%clk
0:00:53.9]} 0-1